bitfinex/quotes_ETHUSD_20240716
["timestamp","ask_amount","ask_price","bid_price","bid_amount"]
[1721105728365,0.62907884,3464.1,3463.5,2.88723]
[1721105729088,2.88668,3464.2,3463.5,2.88723]
[1721105729089,0.62856071,3464.0,3463.5,2.88723]
[1721105729290,0.62856071,3463.9,3463.5,2.88723]
[1721105729498,0.62856071,3463.8,3463.5,2.88723]
[1721105729811,0.62856071,3463.7,3463.5,2.88723]
[1721105730010,4.38630951,3464.2,3463.5,2.88723]
[1721105730213,0.62861667,3464.1,3463.5,2.88723]
[1721105731175,0.62861667,3464.0,3463.5,4.111343]
[1721105731376,0.62861667,3463.9,3463.5,4.111343]
[1721105731722,0.62861667,3463.8,3463.5,4.111343]
[1721105731879,4.38626951,3464.3,3463.5,4.111343]
[1721105732196,4.38626951,3464.3,3463.6,5.37696]
[1721105732197,0.62862045,3464.2,3463.6,5.37696]
[1721105732922,0.62864385,3464.1,3463.6,5.37696]
[1721105733074,4.38668843,3464.3,3463.6,5.37696]
[1721105733075,0.62864385,3464.0,3463.6,5.37696]
[1721105733281,2.88664,3464.3,3463.6,5.37696]
[1721105733475,0.62863414,3464.2,3463.6,5.37696]
[1721105735113,0.62863414,3464.2,3463.7,2.88708]
[1721105735314,0.62863414,3464.2,3463.7,1.124]
[1721105735523,3.79672268,3464.7,3463.8,2.4228]
[1721105735677,5.88562,3465.5,3463.7,4.124]
[1721105735678,2.3318,3465.2,3464.2,1.124]
[1721105735883,1.50045707,3465.1,3465.0,2.886]
[1721105736081,1.50045707,3465.9,3465.1,2.88591]
[1721105736306,5.50963707,3466.0,3465.2,2.88582]
[1721105736722,4.00918,3466.0,3465.2,2.88582]
[1721105737386,1.124,3465.8,3465.0,5.88599]
[1721105737588,1.124,3465.8,3465.2,2.8858]
[1721105740015,4.00918,3466.0,3465.2,2.8858]
[1721105740216,2.88518,3466.0,3465.3,0.05770925]
[1721105740521,2.88518,3466.0,3465.4,0.40675093]
[1721105740727,2.88511,3466.1,3465.4,0.40675093]
[1721105743357,2.3318,3466.2,3465.4,3.29240093]
[1721105744206,2.885,3466.3,3465.5,6.33658]
[1721105744403,5.31617,3466.6,3465.6,2.8855]
[1721105744610,2.4315,3466.6,3465.7,4.87038831]
[1721105745549,2.4315,3466.6,3465.8,2.88526]
[1721105745706,2.8845,3466.8,3465.9,1.124]
[1721105745904,2.88442,3466.9,3466.1,1.124]
[1721105746949,2.88442,3466.9,3466.1,4.00906]
[1721105747135,0.827753,3467.0,3466.1,4.00906]
[1721105747505,0.827753,3467.0,3466.2,2.3506]
[1721105747914,3.712093,3467.0,3466.2,2.3506]
[1721105749174,2.88434,3467.0,3466.2,2.3506]
[1721105749526,2.3932,3467.1,3466.3,2.88489]
[1721105749745,2.3932,3467.1,3466.3,4.00889]
[1721105750319,2.3932,3467.1,3466.3,2.88489]
[1721105750649,2.88434,3467.0,3466.3,2.88489]
[1721105750855,2.88434,3467.0,3466.3,3.22418]
[1721105751037,2.88434,3467.0,3466.3,0.33929]
[1721105754262,2.88442,3466.9,3466.3,0.33929]
[1721105758660,2.88442,3466.9,3466.3,1.46329]
[1721105759020,2.88456,3466.8,3466.2,2.3506]
[1721105759271,2.88459,3466.7,3466.2,2.3506]
[1721105761755,1.124,3466.7,3466.0,3.0]
[1721105761956,2.88493,3466.3,3466.0,3.0]
[1721105762466,2.88478,3466.5,3465.8,1.124]
[1721105762624,2.88478,3466.5,3465.9,0.74604093]
[1721105763684,2.88478,3466.5,3466.0,1.124]
[1721105764468,2.88459,3466.7,3465.8,4.124]
[1721105764469,2.88484,3466.4,3465.8,4.124]
[1721105765015,2.88459,3466.7,3466.0,1.124]
[1721105765169,2.88484,3466.4,3465.8,4.124]
[1721105765371,2.88471,3466.6,3465.8,5.362718]
[1721105765677,2.88471,3466.6,3466.0,1.124]
[1721105767716,2.88476,3466.5,3466.0,1.124]
[1721105770786,2.88459,3466.7,3466.0,1.124]
[1721105770995,2.88459,3466.7,3466.1,2.3491]
[1721105771194,1.124,3467.1,3466.1,2.3491]
[1721105771195,2.88445,3466.9,3466.2,1.124]
[1721105771369,2.88445,3466.9,3466.2,1.35891]
[1721105771709,2.88445,3466.9,3466.4,1.124]
[1721105772071,5.30111,3467.4,3466.6,1.124]
[1721105772415,2.88401,3467.4,3466.6,4.06635037]
[1721105772609,5.30092,3467.7,3466.8,4.00849]
[1721105772821,5.30092,3467.7,3467.0,1.124]
[1721105772822,2.4171,3467.7,3467.0,1.124]
[1721105772984,2.88357,3468.0,3467.1,2.3491]
[1721105774269,2.88367,3467.8,3467.1,2.3491]
[1721105777183,2.88334,3468.2,3467.2,1.124]
[1721105777505,2.88343,3468.1,3467.3,2.88407]
[1721105777898,2.8833,3468.3,3467.5,2.2535]
[1721105778102,3.35102115,3468.6,3467.5,2.2535]
[1721105778303,3.35102115,3468.6,3468.0,1.124]
[1721105778304,2.88301,3468.6,3468.0,1.124]
[1721105779126,2.88284,3468.8,3468.1,2.2535]
[1721105779905,2.88292,3468.7,3468.1,2.2535]
[1721105780986,2.88285,3468.8,3467.6,10.15382]
[1721105781191,2.88285,3468.8,3467.7,2.2535]
[1721105781192,1.124,3468.5,3467.7,2.2535]
[1721105781425,4.00716,3468.5,3467.7,2.2535]
[1721105781722,2.88328,3468.3,3467.7,2.2535]
[1721105782502,2.88328,3468.3,3467.2,2.88416]
[1721105782503,2.88384,3467.6,3466.9,2.4736]
[1721105782721,4.00784,3467.6,3466.8,2.8845]
[1721105783106,2.88384,3467.6,3466.8,2.8845]
[1721105784917,4.00767,3467.8,3466.9,2.8844]
[1721105785304,2.88375,3467.7,3466.9,2.8844]
[1721105785506,2.88359,3467.9,3467.0,4.00827]
[1721105786109,4.00743,3468.1,3467.2,6.2843]
[1721105786297,2.88343,3468.1,3467.2,6.2843]
[1721105786907,2.88343,3468.1,3467.3,2.88405]
[1721105788615,4.00726,3468.3,3467.3,3.800898]
[1721105790535,1.49532134,3468.9,3467.6,2.289]
[1721105790737,2.2656,3469.1,3468.0,2.88344]
[1721105790738,2.88271,3469.0,3468.0,2.88344]
[1721105790943,0.803091,3469.0,3468.0,2.88344]
[1721105791242,2.88284,3468.8,3468.0,2.88344]
[1721105792638,3.685811,3469.0,3468.0,2.88344]
[1721105793755,3.685811,3469.0,3468.1,2.3615]
[1721105794371,3.685811,3469.0,3468.2,2.88333]
[1721105795155,2.88277,3468.9,3468.1,2.3615]
[1721105795362,3.5396161,3468.9,3468.1,2.3615]
[1721105795518,2.88294,3468.7,3467.7,12.51518]
[1721105795724,2.88294,3468.7,3467.8,3.0]
[1721105796351,2.88294,3468.7,3467.8,5.88362]
[1721105796638,2.88294,3468.7,3467.9,2.88352]
[1721105800273,2.88294,3468.7,3468.0,2.8835]
[1721105800569,2.8828,3468.9,3468.1,2.8834]
[1721105801952,2.8828,3468.9,3468.2,2.4453]
[1721105802749,2.8828,3468.9,3468.2,2.50296152]
[1721105802950,2.8828,3468.9,3468.2,3.32995467]
[1721105803557,2.8828,3468.9,3468.2,3.27229315]
[1721105803874,2.8828,3468.9,3468.2,2.4453]
[1721105804076,2.8828,3468.9,3468.1,2.8834]
[1721105804254,2.88284,3468.8,3467.9,5.32887]
[1721105804458,2.88284,3468.8,3468.0,2.8835]
[1721105806787,5.24824,3468.8,3468.0,2.8835]
[1721105807364,5.24824,3468.8,3468.0,4.004746]
[1721105808559,2.88294,3468.7,3468.0,1.121246]
[1721105808958,2.88294,3468.7,3468.0,4.004746]
[1721105812824,2.88232,3469.5,3467.4,7.27]
[1721105812825,2.4433,3468.4,3467.4,7.27]
[1721105812965,2.88362,3467.9,3467.4,7.27]
[1721105813274,2.88362,3467.9,3467.1,15.16418]
[1721105813275,2.88362,3467.9,3467.1,2.88418]
[1721105813682,2.4433,3468.4,3467.0,7.27]
[1721105813683,5.32318,3467.8,3467.0,7.27]
[1721105813889,2.88378,3467.7,3467.1,1.015434]
[1721105816703,2.88378,3467.7,3467.0,2.88432]
[1721105818314,0.62943798,3467.6,3467.0,2.88432]
[1721105820807,3.51327798,3467.6,3466.8,2.88445]
[1721105821135,0.62943798,3467.5,3466.9,5.88438]
[1721105821839,2.88384,3467.6,3466.9,5.88438]
[1721105822025,0.62932026,3467.5,3466.9,5.88438]
[1721105822193,5.32319,3467.8,3467.0,2.88432]
[1721105822393,0.62932899,3467.7,3467.0,2.88432]
[1721105823132,3.51309899,3467.7,3467.0,2.88432]
[1721105823433,0.62932899,3467.6,3467.0,2.88432]
[1721105823614,2.88377,3467.7,3467.0,2.88432]
[1721105823818,0.62922525,3467.6,3467.0,2.88432]
[1721105824497,2.88377,3467.7,3467.0,2.88432]
[1721105824907,0.62932752,3467.6,3467.0,2.88432]
[1721105825189,2.88377,3467.7,3467.0,2.88432]
[1721105825393,0.62920563,3467.6,3467.1,0.588432]
[1721105825697,2.88377,3467.7,3467.1,0.588432]
[1721105825906,0.62922444,3467.6,3467.1,0.588432]
[1721105826404,2.88377,3467.7,3467.1,0.588432]
[1721105826631,0.62916258,3467.6,3467.1,0.588432]
[1721105826831,2.88377,3467.7,3467.1,0.588432]
[1721105827538,0.62925234,3467.6,3467.1,0.588432]
[1721105828130,2.88377,3467.7,3467.1,0.588432]
[1721105830498,0.629308,3467.6,3467.1,0.588432]
[1721105831446,0.629308,3467.6,3467.0,2.88432]
[1721105833815,2.88377,3467.7,3467.0,2.88432]
[1721105834019,0.62907553,3467.6,3467.0,2.88432]
[1721105834212,2.4395,3467.8,3467.1,2.88425]
[1721105834539,0.62902885,3467.7,3467.2,2.4579]
[1721105834720,2.88359,3467.9,3467.2,2.4579]
[1721105834922,0.62897328,3467.8,3467.2,2.4579]
[1721105835303,0.62897328,3467.8,3467.2,3.292115]
[1721105835651,3.99436414,3468.2,3467.3,2.88402]
[1721105835652,2.4961,3468.2,3467.3,2.88402]
[1721105835816,0.62900153,3468.1,3467.3,2.88402]
[1721105836013,0.62900153,3468.1,3467.4,2.88399]
[1721105837025,5.37945,3468.2,3467.4,2.88399]
[1721105837335,0.62902926,3468.1,3467.4,2.88399]
[1721105837531,0.62902926,3468.1,3467.4,3.65680424]
[1721105838316,0.62902926,3468.1,3467.5,2.8839]
[1721105838555,0.62902926,3468.0,3467.5,2.8839]
[1721105838737,4.38146855,3468.4,3467.5,2.8839]
[1721105838937,0.62907021,3468.3,3467.5,2.8839]
[1721105839150,0.62907021,3468.3,3467.5,3.718115]
[1721105840073,0.62907021,3468.3,3467.5,0.834215]
[1721105840228,0.62907021,3468.3,3467.7,5.32007]
[1721105840428,2.4907,3468.5,3467.7,5.32007]
[1721105840429,0.62906962,3468.2,3467.7,5.32007]
[1721105840670,2.4907,3468.5,3467.8,2.88366]
[1721105840966,0.62906771,3468.4,3467.9,2.88358]
[1721105841171,0.62906771,3468.3,3467.9,2.88358]
[1721105841332,0.62906771,3468.2,3467.9,2.88358]
[1721105841533,1.49880971,3468.6,3467.9,2.88358]
[1721105841739,0.62907824,3468.5,3467.9,2.88358]
[1721105841938,0.62907824,3468.4,3467.9,2.88358]
[1721105842177,0.62907824,3468.3,3467.9,2.88358]
[1721105842471,0.62907824,3468.2,3467.9,2.88358]
[1721105842626,1.49880971,3468.6,3467.9,2.88358]
[1721105842830,0.6291147,3468.5,3467.9,2.88358]
[1721105843056,0.6291147,3468.4,3468.0,0.820373]
[1721105843255,5.35814,3468.7,3468.0,0.820373]
[1721105843467,0.62913238,3468.6,3468.0,0.820373]
[1721105843791,0.62914075,3468.5,3468.0,0.820373]
[1721105843933,0.62914075,3468.4,3468.0,0.820373]
[1721105844274,2.88294,3468.7,3468.1,0.3703953]
[1721105844432,0.62915547,3468.6,3468.1,0.3703953]
[1721105845729,0.62915547,3468.6,3468.0,3.703873]
[1721105845942,0.62915547,3468.6,3467.8,2.88361]
[1721105846143,3.51216547,3468.6,3467.8,2.88361]
[1721105846344,3.51216547,3468.6,3467.7,2.4364]
[1721105846345,0.62915547,3468.5,3467.9,2.88358]
[1721105846965,2.88301,3468.6,3467.9,2.88358]
[1721105847178,0.62923273,3468.5,3467.9,2.88358]
[1721105847690,0.62922981,3468.4,3467.9,2.88358]
[1721105847887,2.4935,3468.5,3467.9,2.88358]
[1721105848094,0.62922913,3468.4,3467.9,2.88358]
[1721105849848,0.62922913,3468.4,3467.9,3.703953]
[1721105850251,2.4935,3468.5,3467.9,3.703953]
[1721105850457,0.62928628,3468.4,3467.9,3.703953]
[1721105852483,0.62928628,3468.4,3467.9,2.88358]
[1721105853701,2.4935,3468.5,3467.9,2.88358]
[1721105853860,0.62938392,3468.4,3467.9,2.88358]
[1721105855213,0.62938392,3468.4,3467.7,5.32015]
[1721105855670,0.62938392,3468.4,3467.8,2.88367]
[1721105857297,0.62953548,3468.3,3467.8,2.88367]
[1721105857461,0.62953548,3468.2,3467.8,2.88367]
[1721105857663,2.4935,3468.5,3467.8,2.88367]
[1721105857863,0.62959527,3468.4,3467.8,2.88367]
[1721105860392,0.62959527,3468.4,3467.8,4.187419]
[1721105860592,0.62962616,3468.3,3467.8,4.187419]
[1721105860896,2.88301,3468.6,3467.8,4.187419]
[1721105861074,0.62962571,3468.5,3467.8,4.187419]
[1721105861616,3.51271571,3468.5,3467.8,2.88367]
[1721105861896,0.62962571,3468.4,3467.8,2.88367]
[1721105863831,0.62962571,3468.4,3467.5,9.6488]
[1721105863970,2.88343,3468.1,3467.6,3.0]
[1721105864176,0.62965334,3468.0,3467.6,3.0]
[1721105864385,3.51316334,3468.0,3467.5,7.27]
[1721105864596,0.62965334,3467.9,3467.5,7.27]
[1721105864893,0.62965334,3467.9,3467.2,5.26296]
[1721105865090,0.62965334,3467.9,3467.3,3.0]
[1721105866004,0.62965334,3467.9,3467.3,5.88408]
[1721105867117,2.88351,3468.0,3467.3,5.88408]
[1721105867295,0.62965312,3467.9,3467.3,5.88408]
[1721105869737,0.62965312,3467.9,3467.4,2.88399]
[1721105870408,0.62965312,3467.8,3467.4,2.88399]
[1721105870610,5.22954,3468.2,3467.4,2.88399]
[1721105871147,0.62938692,3468.1,3467.4,2.88399]
[1721105871304,0.62938692,3468.1,3467.4,3.998693]
[1721105873735,0.62939073,3468.0,3467.4,3.998693]
[1721105873934,0.62938689,3467.9,3467.4,3.998693]
[1721105874149,0.62938689,3467.8,3467.4,3.998693]
[1721105874368,5.22954,3468.2,3467.4,3.998693]
[1721105874563,0.62917235,3468.1,3467.4,3.998693]
[1721105875356,0.62917235,3468.1,3467.5,2.88391]
[1721105877324,0.62904707,3468.0,3467.5,2.88391]
[1721105877524,0.62904707,3467.9,3467.5,2.88391]
[1721105877753,0.62904707,3467.8,3467.5,2.88391]
[1721105877952,5.22954,3468.2,3467.5,2.88391]
[1721105878152,0.62898813,3468.1,3467.5,2.88391]
[1721105878828,0.62898813,3468.1,3467.5,3.998598]
[1721105879040,2.4627,3468.5,3467.8,2.88366]
[1721105879041,5.34581,3468.5,3467.8,2.88366]
[1721105879241,1.50010746,3468.3,3467.8,2.88366]
[1721105879437,0.62846161,3468.2,3467.8,2.88366]
[1721105879641,0.62846161,3468.2,3467.6,2.88376]
[1721105879964,0.62846161,3468.2,3467.7,2.88372]
[1721105880325,0.62846161,3468.2,3467.6,2.88376]
[1721105880543,0.62838643,3468.1,3467.6,2.88376]
[1721105880743,0.62838643,3468.0,3467.6,2.88376]
[1721105880960,3.09108643,3467.9,3467.3,3.0]
[1721105881175,0.62838422,3467.8,3467.3,3.0]
[1721105881679,0.62838422,3467.8,3467.3,5.88403]
[1721105883164,0.62838902,3467.7,3467.3,5.88403]
[1721105883372,0.62838902,3467.6,3467.3,5.88403]
[1721105883542,0.62838902,3467.5,3467.3,3.0]
[1721105883747,4.98354425,3468.6,3466.5,12.88555109]
[1721105883748,3.09108902,3467.4,3466.7,5.16938]
[1721105884051,0.62841516,3467.3,3466.8,3.0]
[1721105884975,0.62841516,3467.3,3466.8,5.88448]
[1721105886328,2.4627,3467.4,3466.8,5.88448]
[1721105886477,0.62831615,3467.3,3466.8,5.88448]
[1721105887418,0.62831615,3467.3,3466.7,5.16936]
[1721105887575,0.62831615,3467.3,3466.7,2.88456]
[1721105887775,0.62831615,3467.3,3466.6,7.27]
[1721105888009,0.62831615,3467.3,3466.5,2.88475]
[1721105888721,2.2603,3467.0,3466.4,2.88482]
[1721105888883,0.62831615,3466.9,3466.4,2.88482]
[1721105889077,0.62831615,3466.9,3466.3,7.27]
[1721105889279,2.8845,3466.8,3466.3,7.27]
[1721105889742,0.62840433,3466.7,3466.3,7.27]
[1721105889885,0.62840433,3466.7,3466.4,3.0]
[1721105890209,0.62840433,3466.7,3466.1,3.0]
[1721105890411,2.8845,3466.8,3466.1,3.0]
[1721105890978,2.8845,3466.8,3466.1,5.88506]
[1721105891175,2.88442,3466.9,3466.1,5.88506]
[1721105893989,2.88451,3466.8,3466.1,5.88506]
[1721105894198,2.88451,3466.8,3466.0,2.88516]
[1721105896990,2.88467,3466.6,3465.8,10.15532]
[1721105897220,2.4864,3466.7,3465.9,3.0]
[1721105897446,2.4864,3466.7,3465.9,5.88524]
[1721105897608,2.4864,3466.7,3466.1,2.88508]
[1721105902700,2.4864,3466.7,3466.0,2.88515]
[1721105902898,2.88472,3466.6,3465.9,3.0]
[1721105904693,2.88472,3466.6,3465.9,5.88523]
[1721105906533,2.4808,3467.2,3466.2,2.88492]
[1721105906842,5.36497,3467.2,3466.4,2.88482]
[1721105908038,2.4808,3467.2,3466.7,2.88457]
[1721105910223,1.49565537,3468.0,3466.8,2.8845]
[1721105910224,2.4808,3467.6,3466.8,2.8845]
[1721105910410,2.4808,3467.6,3466.9,2.88435]
[1721105912340,2.88354,3468.0,3467.1,2.88424]
[1721105912557,2.88334,3468.2,3467.1,2.88424]
[1721105912558,5.99298369,3467.9,3467.1,2.88424]
[1721105912860,5.3644,3467.9,3467.1,2.88424]
[1721105916566,0.62861479,3467.8,3467.1,2.88424]
[1721105916762,5.3644,3467.9,3467.1,2.88424]
[1721105917065,2.4808,3467.9,3467.2,2.88414]
[1721105917264,2.4808,3467.9,3467.2,0.576838]
[1721105917564,2.4808,3467.9,3467.3,2.88408]
[1721105917758,0.62861191,3467.8,3467.3,2.88408]
[1721105918833,0.62861191,3467.8,3467.2,0.576838]
[1721105919055,0.62861191,3467.8,3467.1,2.88424]
[1721105919368,0.62861191,3467.8,3467.2,2.88416]
[1721105919743,2.4808,3467.9,3467.2,2.88416]
[1721105919969,0.62864309,3467.8,3467.2,2.88416]
[1721105920332,0.62864309,3467.8,3467.0,2.88429]
[1721105920533,0.62864309,3467.8,3467.1,2.88421]
[1721105921164,3.51231309,3467.8,3467.0,3.7092]
[1721105921382,2.88338,3468.2,3467.3,2.88406]
[1721105921536,3.04846205,3468.1,3467.3,5.26686]
[1721105921735,0.62866205,3468.0,3467.3,2.88406]
[1721105922630,0.62873475,3467.9,3467.3,2.88406]
[1721105922852,5.3033,3468.1,3467.3,2.88406]
[1721105923030,6.27165245,3468.1,3467.3,2.88406]
[1721105923240,0.62873616,3468.0,3467.3,2.88406]
[1721105925989,6.27165245,3468.1,3467.3,2.88406]
[1721105926288,0.62858718,3468.0,3467.4,2.884]
[1721105926439,0.62858718,3467.9,3467.4,2.884]
[1721105926638,2.88334,3468.2,3467.4,2.884]
[1721105926851,0.62865399,3468.1,3467.4,2.884]
[1721105928374,0.62865399,3468.1,3467.4,0.78210924]
[1721105928573,0.62865399,3468.0,3467.4,0.78210924]
[1721105928780,0.62865399,3467.9,3467.3,2.88406]
[1721105928952,3.86882776,3468.3,3467.3,2.88406]
[1721105928953,3.86886159,3468.3,3467.3,2.88406]
[1721105929151,0.62865941,3468.2,3467.5,2.88391]
[1721105929675,5.25451,3468.3,3467.5,2.88391]
[1721105929877,0.62862276,3468.2,3467.5,2.88391]
[1721105930856,3.51196276,3468.2,3467.5,2.88391]
[1721105931054,0.62862276,3468.1,3467.4,2.884]
[1721105933053,2.88334,3468.2,3467.4,2.884]
[1721105933242,0.62852947,3468.1,3467.4,3.699096]
[1721105933755,0.62853753,3468.0,3467.4,3.699096]
[1721105934081,0.62853753,3468.0,3467.2,2.88416]
[1721105934082,0.62852506,3467.9,3467.2,2.88416]
[1721105934379,3.01042506,3467.8,3467.2,2.88416]
[1721105934579,2.3819,3467.8,3467.2,2.88416]
[1721105937447,0.62849252,3467.7,3467.2,2.88416]
[1721105938290,2.88359,3467.9,3467.2,2.88416]
[1721105938456,0.62847155,3467.8,3467.2,2.88416]
[1721105939673,2.88359,3467.9,3467.2,2.88416]
[1721105939856,0.62850934,3467.8,3467.2,2.88416]
[1721105942062,2.88343,3468.1,3467.2,2.88416]
[1721105942257,0.62848383,3468.0,3467.2,2.88416]
[1721105942481,3.51202383,3468.0,3467.2,3.699288]
[1721105942677,0.62848383,3467.9,3467.2,3.699288]
[1721105943790,2.88385,3467.6,3466.8,2.3949]
[1721105944290,2.4932,3467.4,3466.7,3.0]
[1721105944492,5.37727,3467.4,3466.8,3.0]
[1721105944896,5.37727,3467.4,3466.7,3.0]
[1721105945457,5.37727,3467.4,3466.7,5.88458]
[1721105945661,2.4932,3467.4,3466.7,5.88458]
[1721105945908,2.88388,3467.6,3466.8,2.4878]
[1721105946072,0.62855202,3467.5,3466.8,2.4878]
[1721105946273,0.62855202,3467.5,3466.9,2.88441]
[1721105947962,3.51248202,3467.5,3466.7,5.88458]
[1721105948162,0.62855202,3467.4,3466.8,2.88449]
[1721105948588,2.88393,3467.5,3466.8,2.88449]
[1721105948803,0.62857797,3467.4,3466.8,2.88449]
[1721105949368,2.3523,3467.3,3466.8,2.88449]
[1721105949581,0.62857797,3467.2,3466.8,2.88449]
[1721105950775,0.62857797,3467.2,3466.7,3.0]
[1721105950981,0.62857797,3467.2,3466.7,2.88456]
[1721105951181,0.62857797,3467.2,3466.8,3.0]
[1721105952085,0.62854367,3467.1,3466.8,3.0]
[1721105952291,2.3523,3467.3,3466.8,3.0]
[1721105952497,0.62843474,3467.2,3466.8,3.0]
[1721105953078,0.62843474,3467.2,3466.8,4.12571]
[1721105953274,4.3837021,3467.5,3466.8,7.01019]
[1721105953275,2.88393,3467.5,3466.8,7.01019]
[1721105953612,0.62834763,3467.4,3466.8,7.01019]
[1721105955282,2.88393,3467.5,3466.8,7.01019]
[1721105955482,0.62837965,3467.4,3466.8,7.01019]
[1721105958817,2.88393,3467.5,3466.8,7.01019]
[1721105959023,0.62841811,3467.4,3466.8,5.88448]
[1721105959236,2.88393,3467.5,3466.8,5.88448]
[1721105959402,0.62842264,3467.4,3466.8,5.88448]
[1721105959934,0.62842264,3467.4,3466.9,5.2115]
[1721105960095,0.62842264,3467.3,3466.9,5.2115]
[1721105960420,0.62842264,3467.2,3467.0,1.109607]
[1721105960595,2.88376,3467.7,3467.0,1.109607]
[1721105960911,2.88376,3467.7,3466.9,5.2115]
[1721105960912,0.62841272,3467.6,3466.9,5.2115]
[1721105961925,2.88376,3467.7,3466.9,5.2115]
[1721105962219,0.62841805,3467.6,3466.9,5.2115]
[1721105962385,0.62841805,3467.6,3466.9,2.3271]
[1721105962386,2.3384,3467.5,3466.9,2.3271]
[1721105962583,0.62842167,3467.4,3466.9,2.3271]
[1721105962927,2.88418,3467.2,3466.8,3.0]
[1721105963217,2.88418,3467.2,3466.5,2.3533]
[1721105963218,0.62842167,3467.1,3466.5,2.3533]
[1721105963724,0.62842167,3467.1,3466.4,5.88482]
[1721105964381,3.03482167,3467.1,3466.4,5.88482]
[1721105964587,0.62842167,3467.0,3466.4,3.0]
[1721105964782,3.51277167,3467.0,3466.2,2.88498]
[1721105965033,0.62842167,3466.9,3466.2,2.88498]
[1721105965388,0.62849846,3466.8,3466.3,2.88491]
[1721105965633,0.62848992,3466.7,3466.3,2.88491]
[1721105965920,0.62848992,3466.6,3466.3,2.88491]
[1721105966137,2.88435,3467.0,3466.3,2.88491]
[1721105966286,0.62849316,3466.9,3466.3,2.88491]
[1721105969155,0.62849681,3466.8,3466.3,2.88491]
[1721105969325,0.62849681,3466.7,3466.3,2.88491]
[1721105969514,3.96228016,3467.0,3466.3,2.88491]
[1721105969851,0.62850953,3466.9,3466.3,2.88491]
[1721105971936,3.96228016,3467.0,3466.3,2.88491]
[1721105972131,0.62857763,3466.9,3466.3,2.88491]
[1721105972742,2.8841,3467.3,3466.4,2.3415]
[1721105972958,0.62843572,3467.2,3466.5,2.88474]
[1721105974214,0.62842149,3467.1,3466.5,2.88474]
[1721105974417,0.62842149,3467.0,3466.5,2.88474]
[1721105975556,0.62841948,3466.9,3466.3,2.88491]
[1721105975857,0.62841948,3466.8,3466.4,2.88482]
[1721105976059,2.265,3467.1,3466.4,2.88482]
[1721105976363,0.62841368,3467.0,3466.4,2.88482]
[1721105978363,0.62841368,3467.0,3466.4,3.695951]
[1721105978948,0.62846477,3466.9,3466.4,3.695951]
[1721105979145,2.265,3467.1,3466.5,2.88474]
[1721105979350,0.62846025,3467.0,3466.5,2.88474]
[1721105981065,0.62846025,3466.9,3466.5,2.88474]
[1721105981369,6.86019539,3467.4,3466.5,3.68063824]
[1721105981559,3.51254359,3467.3,3466.5,3.68063824]
[1721105981729,0.62845359,3467.2,3466.5,3.68063824]
[1721105981932,2.88409,3467.3,3466.6,2.4039]
[1721105982132,0.62844974,3467.2,3466.6,2.4039]
[1721105983790,0.62844974,3467.2,3466.6,5.28856]
[1721105984442,0.62844974,3467.2,3466.7,2.88458]
[1721105984942,0.62844974,3467.1,3466.7,2.88458]
[1721105985138,4.38269462,3467.5,3466.7,3.701903]
[1721105985139,0.62844974,3467.0,3466.7,3.701903]
[1721105985339,1.49877462,3467.4,3466.7,3.701903]
[1721105985569,0.62849307,3467.3,3466.7,2.88458]
[1721105985775,0.62849307,3467.2,3466.7,2.88458]
[1721105986075,0.62849307,3467.1,3466.8,2.88448]
[1721105986245,6.75176554,3467.6,3466.8,2.88448]
[1721105986446,0.62848759,3467.5,3466.8,2.88448]
[1721105986762,2.12761313,3467.5,3466.8,2.88448]
[1721105986941,0.62848759,3467.4,3466.8,2.88448]
[1721105989668,0.62848759,3467.3,3466.8,2.88448]
[1721105992343,0.62875443,3467.2,3466.8,2.88448]
[1721105992548,0.62875443,3467.1,3466.8,2.88448]
[1721105992747,0.62875443,3467.0,3466.8,2.88448]
[1721105992973,1.50037237,3467.5,3466.8,2.88448]
[1721105993147,0.62872845,3467.4,3466.8,2.88448]
[1721105993790,0.62872845,3467.4,3466.9,2.8844]
[1721105994141,0.62872845,3467.4,3467.0,2.88432]
[1721105994346,0.62872845,3467.3,3467.0,2.88432]
[1721105994540,1.50037237,3467.6,3467.0,2.88432]
[1721105994541,0.62872845,3467.2,3467.0,2.88432]
[1721105994772,0.62872845,3467.1,3467.0,2.88432]
[1721105994945,0.62872845,3467.5,3467.0,2.88432]
[1721105995291,0.62872845,3467.4,3467.0,2.88432]
[1721105995459,0.62872845,3467.3,3467.0,2.88432]
[1721105995658,0.62881905,3467.2,3467.0,2.88432]
[1721105995898,0.62881905,3467.1,3467.0,2.88432]
[1721105996378,0.62881905,3467.5,3467.0,2.88432]
[1721105997086,0.62881905,3467.5,3466.8,2.88445]
[1721105997291,2.87372316,3467.5,3466.8,2.88445]
[1721105997463,0.62881905,3467.4,3466.8,2.88445]
[1721105999084,0.62878669,3467.3,3466.8,2.88445]
[1721105999383,0.62878669,3467.2,3466.8,2.88445]
[1721105999584,0.62878669,3467.1,3466.8,2.88445]
[1721105999781,0.62878669,3467.0,3466.8,2.88445]
[1721105999989,5.12873271,3467.5,3466.8,2.88445]
[1721106000285,1.38461251,3467.4,3466.8,2.88445]
[1721106000580,0.62880924,3467.3,3466.6,5.28855]
[1721106000753,2.3193,3467.2,3466.6,2.88465]
[1721106000952,0.62880924,3467.1,3466.7,2.88458]
[1721106001486,2.3193,3467.2,3466.7,2.88458]
[1721106001682,0.62885106,3467.1,3466.5,2.88471]
[1721106001844,0.62885106,3467.1,3466.3,10.27]
[1721106001845,2.88449,3466.9,3466.3,10.27]
[1721106002044,5.2661,3466.7,3466.3,3.0]
[1721106002345,0.62891693,3466.6,3466.0,3.0]
[1721106002749,0.62891693,3466.6,3466.0,5.88514]
[1721106002982,2.3892,3467.1,3466.3,2.88485]
[1721106003147,0.6290499,3467.0,3466.4,5.17081]
[1721106004690,5.27346,3467.1,3466.4,5.17081]